fUST/lending_fUST_20240119
["ID","MTS","AMOUNT","RATE_DAILY","PERIOD"]
[312170914,1705678246397,-9990.11,0.00028493,2]
[312170916,1705678246407,-500.0,0.00028493,2]
[312170920,1705678246417,-869.44,0.00028493,2]
[312170925,1705678246427,-613.15,0.00028493,2]
[312170928,1705678246436,-3193.69,0.00028493,2]
[312170930,1705678246445,-16707.64,0.00028493,2]
[312170934,1705678246455,-500.0,0.00028493,2]
[312170936,1705678246465,-1163.65,0.00028493,2]
[312170940,1705678246475,-500.0,0.00028493,2]
[312170942,1705678246486,-1660.72,0.00028493,2]
[312170944,1705678246497,-1369.18,0.00028493,2]
[312170946,1705678246507,-500.0,0.00028493,2]
[312170948,1705678246517,-500.0,0.00028493,2]
[312170950,1705678246526,-454.98786393,0.00028493,2]
[312170952,1705678246535,-500.0,0.00028493,2]
[312170953,1705678246544,-659.56,0.00028493,2]
[312170955,1705678246554,-500.0,0.00028493,2]
[312170966,1705678246641,-3991.69,0.00028493,2]
[312170968,1705678246650,-500.0,0.00028493,2]
[312170970,1705678246659,-500.0,0.00028493,2]
[312170972,1705678246668,-500.0,0.00028493,2]
[312170974,1705678246677,-500.0,0.00028493,2]
[312170976,1705678246687,-961.75,0.00028493,2]
[312170978,1705678246696,-692.65,0.00028493,2]
[312170980,1705678246705,-153.0,0.00028493,2]
[312170982,1705678246715,-306.0,0.00028493,2]
[312170984,1705678246724,-327.9954237,0.00028493,2]
[312170986,1705678246733,-417.7674032,0.00028493,2]
[312170988,1705678246742,-401.679406,0.00028493,2]
[312170990,1705678246752,-457.5024889,0.00028493,2]
[312170992,1705678246761,-153.034734,0.00028493,2]
[312170994,1705678246770,-153.0,0.00028493,2]
[312170996,1705678246780,-162.90283469,0.00028699,10]
[312170998,1705678246790,-276000.0,0.000287,2]
[312171000,1705678246799,-151.0,0.000287,2]
[312171002,1705678246811,-10000.0,0.000287,2]
[312171004,1705678246820,-10000.0,0.000287,2]
[312171006,1705678246830,-10000.0,0.000287,2]
[312171008,1705678246839,-155.06823002,0.00028701,3]
[312171010,1705678246849,-190.55418585,0.00028765,2]
[312171012,1705678246858,-218.87556881,0.00028765,2]
[312171014,1705678246868,-273.52161536,0.00028765,2]
[312171016,1705678246877,-204.46320999,0.00028767,2]
[312171018,1705678246887,-500.0,0.00028767,2]
[312171020,1705678246896,-500.0,0.00028767,2]
[312171022,1705678246905,-500.0,0.00028767,2]
[312171024,1705678246915,-500.0,0.00028767,2]
[312171026,1705678246924,-500.0,0.00028767,2]
[312171028,1705678246933,-503.81106822,0.00028767,2]
[312171030,1705678246942,-500.0,0.00028767,2]
[312171032,1705678246951,-508.51,0.00028767,2]
[312171034,1705678246961,-674.1,0.00028767,2]
[312171036,1705678246971,-658.12,0.00028767,2]
[312171038,1705678246980,-500.0,0.00028767,2]
[312171040,1705678246990,-500.0,0.00028767,2]
[312171042,1705678247000,-500.0,0.00028767,2]
[312171044,1705678247010,-500.0,0.00028767,2]
[312171046,1705678247024,-500.0,0.00028767,2]
[312171048,1705678247034,-500.0,0.00028767,2]
[312171050,1705678247043,-1387.89,0.00028767,2]
[312171052,1705678247052,-500.0,0.00028767,2]
[312171054,1705678247067,-1916.95,0.00028767,2]
[312171056,1705678247077,-500.0,0.00028767,2]
[312171058,1705678247087,-879.08,0.00028767,2]
[312171060,1705678247097,-631.7,0.00028767,2]
[312171062,1705678247107,-500.0,0.00028767,2]
[312171064,1705678247119,-3201.55,0.00028767,2]
[312171066,1705678247128,-500.0,0.00028767,2]
[312171068,1705678247138,-4101.24,0.00028767,2]
[312171070,1705678247147,-5651.14,0.00028767,2]
[312171072,1705678247157,-1421.09,0.00028767,2]
[312171075,1705678247167,-663.27,0.00028767,2]
[312171077,1705678247177,-800.83,0.00028767,2]
[312171078,1705678247186,-902.02,0.00028767,2]
[312171081,1705678247196,-1883.63,0.00028767,2]
[312171083,1705678247205,-476.44411787,0.00028767,2]
[312171085,1705678247216,-788.44,0.00028767,2]
[312171087,1705678247225,-500.0,0.00028767,2]
[312171089,1705678247235,-868.02,0.00028767,2]
[312171091,1705678247244,-9990.11,0.00028767,2]
[312171092,1705678247253,-500.0,0.00028767,2]
[312171094,1705678247262,-869.44,0.00028767,2]
[312171097,1705678247272,-613.15,0.00028767,2]
[312171099,1705678247281,-1369.21861263,0.00028767,2]
[312171108,1705678247364,-1824.47138737,0.00028767,2]
[312171110,1705678247374,-8378.37813551,0.00028767,2]
[312171112,1705678247386,-2553.91505872,0.00028767,2]
[312171115,1705678247398,-1138.492502,0.00028767,2]
[312171132,1705678247550,-500.0,0.00027397,2]
[312171134,1705678247563,-205.39713821,0.000287,2]
[312171136,1705678247575,-734.74690286,0.000287,2]
[312171140,1705678247604,-524.36430194,0.000287,2]
[312171142,1705678247616,-8535.49165699,0.000287,2]
[312171144,1705678247625,-365.49679365,0.00028767,2]
[312171146,1705678247637,-4271.35751012,0.00028767,2]
[312171148,1705678247646,-500.0,0.00028767,2]
[312171150,1705678247655,-1163.65,0.00028767,2]
[312171152,1705678247664,-500.0,0.00028767,2]
[312171154,1705678247674,-1660.72,0.00028767,2]
[312171156,1705678247684,-1369.18,0.00028767,2]
[312171158,1705678247693,-500.0,0.00028767,2]
[312171160,1705678247702,-177.52865441,0.00028767,2]
[312171162,1705678247711,-659.56,0.00028767,2]
[312171164,1705678247721,-500.0,0.00028767,2]
[312171166,1705678247730,-2513.54691669,0.00028767,2]
[312171169,1705678247742,-1478.14308331,0.00028767,2]
[312171171,1705678247751,-500.0,0.00028767,2]
[312171173,1705678247760,-500.0,0.00028767,2]
[312171175,1705678247770,-500.0,0.00028767,2]
[312171177,1705678247779,-506.1218786,0.00028767,2]
[312171179,1705678247788,-692.65,0.00028767,2]
[312171181,1705678247798,-961.75,0.00028767,2]
[312171183,1705678247809,-43.26987739,0.00028795,2]
[312171185,1705678247821,-3378.55562546,0.00028795,2]
[312171187,1705678247832,-1272.76309602,0.00028795,2]
[312171229,1705678248241,-787.34773645,0.00025029,2]
[312171231,1705678248250,-413.75890429,0.00027397,2]
[312171233,1705678248262,-86.24109571,0.00027397,2]
[312171235,1705678248271,-500.0,0.00027397,2]
[312171237,1705678248280,-500.0,0.00027397,2]
[312171239,1705678248289,-500.0,0.00027397,2]
[312171241,1705678248299,-500.0,0.00027671,2]
[312171243,1705678248309,-500.0,0.00027671,2]
[312171245,1705678248318,-500.0,0.00027671,2]
[312171247,1705678248328,-500.0,0.00027945,2]
[312171249,1705678248337,-458.95,0.00027945,2]
[312171251,1705678248346,-500.0,0.00028219,2]
[312171253,1705678248355,-500.0,0.00028493,2]
[312171255,1705678248364,-495.91723167,0.000287,2]
[312171267,1705678248463,-390.34186946,0.000287,2]
[312171281,1705678248589,-143.33426817,0.00027397,2]
[312174573,1705679117443,-787.34773645,0.00020547,2]
[312174574,1705679117475,-575.65226355,0.00020548,5]
[312174575,1705679168812,-2117.96293368,0.00020548,5]
[312174576,1705679168841,-0.03706632,0.00024497,2]
[312174577,1705679248103,-2106.30961678,0.00020547,2]
[312174578,1705679248127,-1039.38013158,0.00020548,2]
[312174581,1705679346091,-166.666666,0.00020548,2]
[312174582,1705679346120,-140.64893738,0.00020548,2]
[312174583,1705679367110,-296.75355326,0.00024496,2]
[312174584,1705679373090,-490.59418319,0.00024496,2]
[312174585,1705679373111,-7353.15801505,0.00024497,2]
[312174600,1705679432508,-274.194,0.00024497,2]
[312174706,1705679438647,-11785.24642323,0.00024497,2]
[312174709,1705679438657,-24900.0,0.00024716,2]
[312174711,1705679438668,-444.082413,0.00024945,2]
[312174713,1705679438677,-2283.71005988,0.00025027,2]
[312174715,1705679438687,-7993.35951483,0.00025028,2]
[312174717,1705679438697,-200.0,0.00025721,7]
[312174719,1705679438713,-50000.0,0.0002653,2]
[312174722,1705679438728,-1215.86715084,0.000266,2]
[312174724,1705679438744,-274.61857249,0.00027,2]
[312174727,1705679438758,-1500.0,0.00027,2]
[312174729,1705679438772,-181.05722332,0.00027297,2]
[312174732,1705679438783,-587.80263423,0.00027395,2]
[312174734,1705679438795,-218.87556881,0.00027395,2]
[312174736,1705679438809,-190.55418585,0.00027395,2]
[312174739,1705679438823,-273.52161536,0.00027395,2]
[312174741,1705679438836,-322.82895147,0.00027396,2]
[312174743,1705679438849,-500.0,0.00027396,2]
[312174746,1705679438863,-500.0,0.00027396,2]
[312174748,1705679438875,-500.0,0.00027396,2]
[312174749,1705679438889,-491.12802194,0.00027396,2]
[312174750,1705679438902,-197.26043868,0.00027396,2]
[312174751,1705679438912,-299.31510966,0.00027396,2]
[312174752,1705679438925,-763.6737386,0.00027397,2]
[312174753,1705679438938,-502.4340676,0.00027397,2]
[312174754,1705679438951,-500.0,0.00027397,2]
[312174755,1705679438963,-500.0,0.00027397,2]
[312174756,1705679438974,-500.0,0.00027397,2]
[312174757,1705679438987,-500.0,0.00027397,2]
[312174758,1705679438999,-499.97474056,0.00027397,2]
[312174759,1705679439012,-500.0,0.00027397,2]
[312174760,1705679439024,-500.0,0.00027397,2]
[312174762,1705679439034,-500.0,0.00027397,2]
[312174764,1705679439045,-500.0,0.00027397,2]
[312174766,1705679439058,-500.0,0.00027397,2]
[312174768,1705679439071,-500.0,0.00027397,2]
[312174771,1705679439083,-500.0,0.00027397,2]
[312174773,1705679439097,-500.0,0.00027397,2]
[312174775,1705679439108,-500.0,0.00027397,2]
[312174777,1705679439121,-500.0,0.00027397,2]
[312174780,1705679439133,-500.0,0.00027397,2]
[312174782,1705679439145,-500.0,0.00027397,2]
[312174784,1705679439157,-500.0,0.00027397,2]
[312174786,1705679439169,-500.0,0.00027397,2]
[312174788,1705679439182,-459.03306898,0.00027397,2]
[312174791,1705679439194,-500.0,0.00027397,2]
[312174793,1705679439207,-508.32988203,0.00027397,2]
[312174795,1705679439220,-1000.0,0.00027397,2]
[312174798,1705679439233,-685.53,0.00027397,2]
[312174800,1705679439245,-649.11,0.00027397,2]
[312174802,1705679439255,-500.0,0.00027397,2]
[312174804,1705679439265,-500.0,0.00027397,2]
[312174806,1705679439276,-500.0,0.00027397,2]
[312174809,1705679439287,-500.0,0.00027397,2]
[312174811,1705679439298,-500.0,0.00027397,2]
[312174813,1705679439309,-500.0,0.00027397,2]
[312174815,1705679439321,-500.0,0.00027397,2]
[312174818,1705679439334,-155.0,0.00027397,2]
[312174820,1705679439347,-689.88,0.00027397,2]
[312174822,1705679439359,-1380.72,0.00027397,2]
[312174824,1705679439369,-500.0,0.00027397,2]
[312174826,1705679439381,-1910.01,0.00027397,2]
[312174829,1705679439392,-302.98557895,0.00027397,2]
[312174831,1705679439403,-619.24,0.00027397,2]
[312174833,1705679439414,-500.0,0.00027397,2]
[312174835,1705679439426,-500.0,0.00027397,2]
[312174837,1705679439439,-858.14,0.00027397,2]
[312174840,1705679439452,-500.0,0.00027397,2]
[312174842,1705679439463,-500.0,0.00027397,2]
[312174844,1705679439478,-500.0,0.00027397,2]
[312174846,1705679439491,-505.42235422,0.00027397,2]
[312174848,1705679439503,-500.0,0.00027397,2]
[312174851,1705679439514,-500.0,0.00027397,2]
[312174853,1705679439526,-500.0,0.00027397,2]
[312174855,1705679439536,-500.0,0.00027397,2]
[312174857,1705679439548,-500.0,0.00027397,2]
[312174859,1705679439559,-500.0,0.00027397,2]
[312174861,1705679439569,-500.0,0.00027397,2]
[312174863,1705679439581,-500.0,0.00027397,2]
[312174866,1705679439592,-1002.64129724,0.00027397,2]
[312174868,1705679439602,-500.0,0.00027397,2]
[312174870,1705679439613,-500.0,0.00027397,2]
[312174872,1705679439625,-3594.22,0.00027397,2]
[312174874,1705679439636,-500.0,0.00027397,2]
[312174877,1705679439648,-500.0,0.00027397,2]
[312174879,1705679439660,-1305.95,0.00027397,2]
[312174881,1705679439672,-972.33,0.00027397,2]
[312174883,1705679439684,-4313.26,0.00027397,2]
[312174885,1705679439696,-500.0,0.00027397,2]
[312174887,1705679439708,-948.57,0.00027397,2]
[312174889,1705679439719,-500.0,0.00027397,2]
[312174892,1705679439731,-6223.98,0.00027397,2]
[312174894,1705679439742,-777.38,0.00027397,2]
[312174896,1705679439753,-500.0,0.00027397,2]
[312174898,1705679439765,-1996.93,0.00027397,2]
[312174900,1705679439777,-500.0,0.00027397,2]
[312174902,1705679439788,-500.0,0.00027397,2]
[312174904,1705679439799,-507.52266502,0.00027397,2]
[312174906,1705679439811,-356.98673676,0.00027397,2]
[312174920,1705679439939,-853.04,0.00027397,2]
[312174922,1705679439949,-500.0,0.00027397,2]
[312174924,1705679439959,-500.0,0.00027397,2]
[312174926,1705679439968,-494.87615425,0.00027397,2]
[312174928,1705679439977,-500.0,0.00027397,2]
[312174930,1705679439988,-501.76139814,0.00027397,2]
[312174932,1705679439998,-500.0,0.00027397,2]
[312174934,1705679440007,-500.0,0.00027397,2]
[312174936,1705679440017,-500.0,0.00027397,2]
[312174938,1705679440027,-500.0,0.00027397,2]
[312174940,1705679440036,-513.87708862,0.00027397,2]
[312174942,1705679440046,-500.0,0.00027397,2]
[312174944,1705679440055,-500.0,0.00027397,2]
[312174946,1705679440064,-10191.89,0.00027397,2]
[312174948,1705679440074,-500.0,0.00027397,2]
[312174950,1705679440084,-500.0,0.00027397,2]
[312174952,1705679440093,-500.0,0.00027397,2]
[312174954,1705679440103,-500.0,0.00027397,2]
[312174956,1705679440112,-500.0,0.00027397,2]
[312174958,1705679440121,-500.0,0.00027397,2]
[312174960,1705679440131,-832.45,0.00027397,2]
[312174962,1705679440140,-17714.61,0.00027397,2]
[312174964,1705679440150,-500.0,0.00027397,2]
[312174966,1705679440159,-500.0,0.00027397,2]
[312174968,1705679440168,-500.0,0.00027397,2]
[312174970,1705679440177,-842.52,0.00027397,2]
[312174972,1705679440186,-500.0,0.00027397,2]
[312174974,1705679440196,-500.0,0.00027397,2]
[312174976,1705679440205,-500.0,0.00027397,2]
[312174978,1705679440215,-508.73253819,0.00027397,2]
[312174980,1705679440225,-3508.77,0.00027397,2]
[312174982,1705679440236,-500.0,0.00027397,2]
[312174984,1705679440246,-500.0,0.00027397,2]
[312174986,1705679440255,-502.28537969,0.00027397,2]
[312174988,1705679440265,-500.0,0.00027397,2]
[312174990,1705679440274,-663.66,0.00027397,2]
[312174992,1705679440284,-500.0,0.00027397,2]
[312174994,1705679440293,-500.0,0.00027397,2]
[312174996,1705679440303,-500.0,0.00027397,2]
[312174998,1705679440312,-1721.63,0.00027397,2]
[312175000,1705679440322,-500.0,0.00027397,2]
[312175002,1705679440331,-500.0,0.00027397,2]
[312175004,1705679440340,-500.0,0.00027397,2]
[312175005,1705679440350,-500.0,0.00027397,2]
[312175007,1705679440359,-1363.29,0.00027397,2]
[312175009,1705679440369,-502.48230786,0.00027397,2]
[312175011,1705679440379,-500.0,0.00027397,2]
[312175013,1705679440390,-500.0,0.00027397,2]
[312175016,1705679440402,-500.0,0.00027397,2]
[312175017,1705679440412,-500.0,0.00027397,2]
[312175020,1705679440423,-1277.43,0.00027397,2]
[312175022,1705679440432,-500.0,0.00027397,2]
[312175024,1705679440442,-542.18057941,0.00027397,2]
[312175026,1705679440451,-3534.4,0.00027397,2]
[312175029,1705679440462,-500.0,0.00027397,2]
[312175030,1705679440473,-500.0,0.00027397,2]
[312175032,1705679440484,-568.96,0.00027397,2]
[312175034,1705679440495,-676.4,0.00027397,2]
[312175036,1705679440505,-500.0,0.00027397,2]
[312175039,1705679440515,-744.64,0.00027397,2]
[312175040,1705679440525,-500.0,0.00027397,2]
[312175042,1705679440535,-500.0,0.00027397,2]
[312175044,1705679440544,-500.0,0.00027397,2]
[312175046,1705679440553,-500.0,0.00027397,2]
[312175048,1705679440563,-500.0,0.00027397,2]
[312175051,1705679440574,-402.99,0.00027397,2]
[312175055,1705679440586,-500.0,0.00027397,2]
[312175059,1705679440597,-566.02820619,0.00027397,2]
[312175062,1705679440607,-593.64010795,0.00027671,2]
[312175065,1705679440617,-582.84920971,0.00027671,2]
[312175067,1705679440626,-500.0,0.00027671,2]
[312175068,1705679440636,-566.97051211,0.00027671,2]
[312175070,1705679440645,-500.0,0.00027671,2]
[312175072,1705679440655,-500.0,0.00027671,2]
[312175074,1705679440665,-500.0,0.00027671,2]
[312175076,1705679440674,-685.53,0.00027671,2]
[312175078,1705679440686,-649.11,0.00027671,2]
[312175081,1705679440699,-500.0,0.00027671,2]
[312175082,1705679440709,-500.0,0.00027671,2]
[312175084,1705679440719,-500.0,0.00027671,2]
[312175086,1705679440729,-500.0,0.00027671,2]
[312175088,1705679440740,-500.0,0.00027671,2]
[312175090,1705679440750,-500.0,0.00027671,2]
[312175092,1705679440760,-689.88,0.00027671,2]
[312175094,1705679440770,-1380.72,0.00027671,2]
[312175096,1705679440780,-500.0,0.00027671,2]
[312175098,1705679440789,-1910.01,0.00027671,2]
[312175100,1705679440798,-619.24,0.00027671,2]
[312175102,1705679440808,-500.0,0.00027671,2]
[312175104,1705679440817,-500.0,0.00027671,2]
[312175106,1705679440826,-858.14,0.00027671,2]
[312175108,1705679440836,-500.0,0.00027671,2]
[312175110,1705679440845,-500.0,0.00027671,2]
[312175112,1705679440855,-500.0,0.00027671,2]
[312175114,1705679440864,-500.0,0.00027671,2]
[312175116,1705679440873,-500.0,0.00027671,2]
[312175118,1705679440883,-500.0,0.00027671,2]
[312175120,1705679440892,-500.0,0.00027671,2]
[312175122,1705679440901,-500.0,0.00027671,2]
[312175124,1705679440911,-500.0,0.00027671,2]
[312175126,1705679440920,-500.0,0.00027671,2]
[312175128,1705679440930,-500.0,0.00027671,2]
[312175130,1705679440939,-500.0,0.00027671,2]
[312175131,1705679440948,-3594.22,0.00027671,2]
[312175134,1705679440958,-500.0,0.00027671,2]
[312175135,1705679440967,-500.0,0.00027671,2]
[312175137,1705679440976,-1305.95,0.00027671,2]
[312175139,1705679440986,-4313.26,0.00027671,2]
[312175142,1705679440998,-972.33,0.00027671,2]
[312175143,1705679441007,-641.74758446,0.00027671,2]
[312175145,1705679441018,-948.57,0.00027671,2]
[312175147,1705679441027,-500.0,0.00027671,2]
[312175149,1705679441036,-6223.98,0.00027671,2]
[312175151,1705679441046,-777.38,0.00027671,2]
[312175153,1705679441056,-1996.93,0.00027671,2]
[312175155,1705679441064,-500.0,0.00027671,2]
[312175157,1705679441074,-500.0,0.00027671,2]
[312175159,1705679441083,-401.7669085,0.00027671,2]
[312175161,1705679441092,-853.04,0.00027671,2]
[312175163,1705679441101,-500.0,0.00027671,2]
[312175165,1705679441110,-500.0,0.00027671,2]
[312175167,1705679441120,-500.0,0.00027671,2]
[312175169,1705679441129,-500.0,0.00027671,2]
[312175171,1705679441138,-291.68044868,0.00027671,2]
[312175173,1705679441148,-10191.89,0.00027671,2]
[312175175,1705679441157,-500.0,0.00027671,2]
[312175177,1705679441166,-500.0,0.00027671,2]
[312175179,1705679441175,-500.0,0.00027671,2]
[312175181,1705679441184,-500.0,0.00027671,2]
[312175183,1705679441193,-832.45,0.00027671,2]
[312175185,1705679441203,-17714.61,0.00027671,2]
[312175187,1705679441213,-500.0,0.00027671,2]
[312175189,1705679441222,-500.0,0.00027671,2]
[312175191,1705679441232,-500.0,0.00027671,2]
[312175193,1705679441243,-842.52,0.00027671,2]
[312175195,1705679441252,-552.00331859,0.00027671,2]
[312175197,1705679441262,-500.0,0.00027671,2]
[312175199,1705679441271,-3508.77,0.00027671,2]
[312175201,1705679441280,-559.90950028,0.00027671,2]
[312175203,1705679441289,-663.66,0.00027671,2]
[312175205,1705679441301,-1721.63,0.00027671,2]
[312175207,1705679441310,-500.0,0.00027671,2]
[312175209,1705679441319,-500.0,0.00027671,2]
[312175211,1705679441329,-500.0,0.00027671,2]
[312175213,1705679441338,-1363.29,0.00027671,2]
[312175215,1705679441347,-500.0,0.00027671,2]
[312175217,1705679441356,-316.5402139,0.00027671,2]
[312175219,1705679441365,-500.0,0.00027671,2]
[312175221,1705679441375,-500.0,0.00027671,2]
[312175223,1705679441388,-1277.43,0.00027671,2]
[312175225,1705679441400,-500.0,0.00027671,2]
[312175227,1705679441409,-3534.4,0.00027671,2]
[312175229,1705679441418,-500.0,0.00027671,2]
[312175231,1705679441429,-500.0,0.00027671,2]
[312175233,1705679441438,-568.96,0.00027671,2]
[312175235,1705679441447,-676.4,0.00027671,2]
[312175236,1705679441456,-500.0,0.00027671,2]
[312175238,1705679441465,-744.64,0.00027671,2]
[312175241,1705679441476,-500.0,0.00027671,2]
[312175242,1705679441487,-500.0,0.00027671,2]
[312175244,1705679441497,-156.54004736,0.00027844,4]
[312175246,1705679441507,-220.77218194,0.00027844,4]
[312175248,1705679441517,-377.622,0.00027844,2]
[312175250,1705679441527,-365.26011049,0.00027844,4]
[312175252,1705679441536,-407.17228242,0.00027844,4]
[312175254,1705679441545,-475.01653594,0.00027844,4]
[312175256,1705679441555,-515.1350912,0.00027844,4]
[312175258,1705679441564,-213468.43929921,0.00027845,2]
[312175260,1705679441573,-500.0,0.00027945,2]
[312175262,1705679441582,-500.0,0.00027945,2]
[312175264,1705679441592,-685.53,0.00027945,2]
[312175266,1705679441601,-649.11,0.00027945,2]
[312175268,1705679441611,-500.0,0.00027945,2]
[312175270,1705679441620,-500.0,0.00027945,2]
[312175272,1705679441630,-500.0,0.00027945,2]
[312175274,1705679441640,-500.0,0.00027945,2]
[312175276,1705679441649,-500.0,0.00027945,2]
[312175278,1705679441659,-500.0,0.00027945,2]
[312175280,1705679441668,-689.88,0.00027945,2]
[312175282,1705679441678,-1380.72,0.00027945,2]
[312175284,1705679441690,-500.0,0.00027945,2]
[312175286,1705679441699,-1910.01,0.00027945,2]
[312175288,1705679441709,-619.24,0.00027945,2]
[312175290,1705679441719,-565.00218531,0.00027945,2]
[312175292,1705679441728,-500.0,0.00027945,2]
[312175294,1705679441738,-858.14,0.00027945,2]
[312175296,1705679441748,-500.0,0.00027945,2]
[312175298,1705679441758,-500.0,0.00027945,2]
[312175300,1705679441768,-500.0,0.00027945,2]
[312175302,1705679441777,-500.0,0.00027945,2]
[312175304,1705679441786,-500.0,0.00027945,2]
[312175306,1705679441796,-186.61271067,0.00027945,2]
[312175308,1705679441807,-500.0,0.00027945,2]
[312175310,1705679441817,-500.0,0.00027945,2]
[312175312,1705679441827,-3594.22,0.00027945,2]
[312175314,1705679441836,-500.0,0.00027945,2]
[312175316,1705679441846,-500.0,0.00027945,2]
[312175318,1705679441855,-1305.95,0.00027945,2]
[312175320,1705679441865,-4313.26,0.00027945,2]
[312175322,1705679441874,-972.33,0.00027945,2]
[312175324,1705679441883,-948.57,0.00027945,2]
[312175326,1705679441893,-500.0,0.00027945,2]
[312175328,1705679441902,-6223.98,0.00027945,2]
[312175329,1705679441912,-777.38,0.00027945,2]
[312175330,1705679441921,-1996.93,0.00027945,2]
[312175331,1705679441930,-514.50148046,0.00027945,2]
[312175332,1705679441939,-500.0,0.00027945,2]
[312175333,1705679441948,-853.04,0.00027945,2]
[312175334,1705679441957,-500.0,0.00027945,2]
[312175335,1705679441966,-500.0,0.00027945,2]
[312175336,1705679441976,-500.0,0.00027945,2]
[312175337,1705679441986,-500.0,0.00027945,2]
[312175338,1705679441994,-10191.89,0.00027945,2]
[312175339,1705679442003,-500.0,0.00027945,2]
[312175340,1705679442012,-500.0,0.00027945,2]
[312175341,1705679442022,-500.0,0.00027945,2]
[312175342,1705679442031,-832.45,0.00027945,2]
[312175343,1705679442041,-17714.61,0.00027945,2]
[312175344,1705679442050,-500.0,0.00027945,2]
[312175345,1705679442060,-500.0,0.00027945,2]
[312175346,1705679442069,-500.0,0.00027945,2]
[312175347,1705679442079,-842.52,0.00027945,2]
[312175348,1705679442088,-500.0,0.00027945,2]
[312175349,1705679442097,-3508.77,0.00027945,2]
[312175350,1705679442107,-663.66,0.00027945,2]
[312175351,1705679442116,-1721.63,0.00027945,2]
[312175352,1705679442126,-500.0,0.00027945,2]
[312175353,1705679442213,-1363.29,0.00027945,2]
[312175354,1705679442224,-500.0,0.00027945,2]
[312175355,1705679442233,-506.76501181,0.00027945,2]
[312175357,1705679442244,-500.0,0.00027945,2]
[312175359,1705679442254,-1277.43,0.00027945,2]
[312175361,1705679442263,-500.0,0.00027945,2]
[312175363,1705679442273,-3534.4,0.00027945,2]
[312175365,1705679442281,-500.0,0.00027945,2]
[312175367,1705679442290,-500.0,0.00027945,2]
[312175369,1705679442299,-568.96,0.00027945,2]
[312175371,1705679442310,-676.4,0.00027945,2]
[312175372,1705679442319,-500.0,0.00027945,2]
[312175374,1705679442328,-744.64,0.00027945,2]
[312175376,1705679442338,-500.0,0.00027945,2]
[312175378,1705679442348,-500.0,0.00027945,2]
[312175380,1705679442357,-290.08228321,0.00028,2]
[312175382,1705679442367,-154.82968734,0.00028,10]
[312175384,1705679442379,-1500.0,0.00028,2]
[312175386,1705679442388,-600.0,0.00028,2]
[312175388,1705679442399,-2871.42236462,0.00028218,2]
[312175390,1705679442408,-500.0,0.00028219,2]
[312175392,1705679442418,-685.53,0.00028219,2]
[312175394,1705679442427,-649.11,0.00028219,2]
[312175396,1705679442436,-500.0,0.00028219,2]
[312175398,1705679442445,-500.0,0.00028219,2]
[312175400,1705679442454,-500.0,0.00028219,2]
[312175402,1705679442464,-500.0,0.00028219,2]
[312175404,1705679442474,-500.0,0.00028219,2]
[312175406,1705679442483,-689.88,0.00028219,2]
[312175408,1705679442494,-1380.72,0.00028219,2]
[312175411,1705679442504,-500.0,0.00028219,2]
[312175413,1705679442517,-1910.01,0.00028219,2]